[Event "7th Leer Open-A 2024"]
[Site "Leer"]
[Date "2024.10.31"]
[Round "2.33"]
[White "Dorendorf, Mika"]
[Black "Aden, Dagmar"]
[Result "0-1"]
[ECO "D52"]
[WhiteElo "2045"]
[BlackElo "1865"]
[Annotator "RC"]
[PlyCount "70"]
[EventDate "2024.10.14"]
[EventType "swiss"]
[EventCountry "GER"]
[SourceTitle "playchess.com"]
[Source "ChessBase"]
[SourceQuality "1"]
[TimeControl "40/5400+30:900+30"]

1. d4 {[%emt 0:00:21]} d5 {[%emt 0:00:18]} 2. c4 {[%emt 0:00:06]} e6 {[%emt 0:00:08]} 3. Nc3 {[%emt 0:00:08]} Nf6 {[%emt 0:00:11]} 4. cxd5 {[%emt 0:00:07]} exd5 {[%emt 0:00:11]} 5. Bg5 {[%emt 0:00:07]} c6 {[%emt 0:00:51]} 6. e3 {[%emt 0:00:14]} Nbd7 {[%emt 0:03:47]} 7. Bd3 {[%emt 0:01:00]} Qa5 {[%emt 0:01:14]} 8. Qc2 {[%emt 0:01:39]} Bb4 {[%emt 0:01:47]} 9. Nf3 {[%emt 0:00:44]} O-O {[%emt 0:01:05]} 10. O-O {[%emt 0:01:31]} Re8 {[%emt 0:01:20]} 11. a3 {[%emt 0:04:27]} Bxc3 {[%emt 0:01:39]} 12. bxc3 {[%emt 0:00:10]} Ne4 {[%emt 0:03:08]} 13. Bxe4 {[%emt 0:00:48]} dxe4 {[%emt 0:00:11]} 14. Ne5 {[%emt 0:00:35]} Nxe5 {[%emt 0:00:56]} 15. dxe5 {[%emt 0:00:08]} Qxe5 {[%emt 0:01:14]} 16. Bf4 {[%emt 0:00:09]} Qh5 {[%emt 0:04:12]} 17. Rad1 {[%emt 0:01:08]} Bg4 {[%emt 0:06:13]} 18. Rd4 {[%emt 0:00:42]} Qg6 {[%emt 0:07:44]} 19. Rd6 {[%emt 0:01:57]} Qh5 {[%emt 0:06:53]} 20. Rb1 {[%emt 0:02:52]} Qa5 {[%emt 0:07:21]} 21. a4 {[%emt 0:03:47]} Qa6 {[%emt 0:06:43]} 22. Rb4 {[%emt 0:01:44]} Rad8 {[%emt 0:01:35]} 23. Rxe4 {[%emt 0:01:08]} Be6 {[%emt 0:02:13]} 24. Red4 {[%emt 0:01:06]} Rxd6 {[%emt 0:00:57]} 25. Rxd6 {[%emt 0:00:23]} Qa5 {[%emt 0:02:14]} 26. h3 {[%emt 0:01:57]} h6 {[%emt 0:03:36]} 27. Rd4 {[%emt 0:02:24]} c5 {[%emt 0:04:21]} 28. Rd6 {[%emt 0:02:21]} Rd8 {[%emt 0:01:40]} 29. Kh2 {[%emt 0:06:43]} Rxd6 {[%emt 0:01:27]} 30. Bxd6 {[%emt 0:00:09]} Bd7 {[%emt 0:03:15]} 31. Qe4 {[%emt 0:00:20]} Bc6 {[%emt 0:06:09]} 32. Qe7 {[%emt 0:00:44]} Qxc3 {[%emt 0:04:10]} 33. Qf8+ {[%emt 0:01:18]} Kh7 {[%emt 0:00:07]} 34. Qxf7 {[%emt 0:00:22]} Qf6 {[%emt 0:02:27]} 35. Qc7 {[%emt 0:01:37]} Qxf2 {[%emt 0:01:48]} 0-1

[Event "7th Leer Open-A 2024"]
[Site "Leer"]
[Date "2024.10.31"]
[Round "2.34"]
[White "Arnz, Tom Niklas"]
[Black "Popvasilev, Kaloyan"]
[Result "0-1"]
[ECO "B67"]
[WhiteElo "1865"]
[BlackElo "2237"]
[Annotator "RC"]
[PlyCount "52"]
[EventDate "2024.10.14"]
[EventType "swiss"]
[EventCountry "GER"]
[SourceTitle "playchess.com"]
[Source "ChessBase"]
[SourceQuality "1"]
[TimeControl "40/5400+30:900+30"]

1. e4 {[%emt 0:00:08]} c5 {[%emt 0:00:04]} 2. Nf3 {[%emt 0:00:34]} d6 {[%emt 0:00:05]} 3. d4 {[%emt 0:00:27]} Nf6 {[%emt 0:00:05]} 4. Nc3 {[%emt 0:00:14]} cxd4 {[%emt 0:00:05]} 5. Nxd4 {[%emt 0:00:11]} Nc6 {[%emt 0:00:03]} 6. Bg5 {[%emt 0:00:10]} e6 {[%emt 0:00:13]} 7. Qd2 {[%emt 0:00:17]} a6 {[%emt 0:00:06]} 8. O-O-O {[%emt 0:00:20]} Bd7 {[%emt 0:00:06]} 9. f4 {[%emt 0:00:17]} b5 {[%emt 0:00:15]} 10. f5 {[%emt 0:12:47]} b4 {[%emt 0:02:31]} 11. fxe6 {[%emt 0:05:47]} fxe6 {[%emt 0:03:11]} 12. Nce2 {[%emt 0:01:52]} Nxe4 {[%emt 0:02:35]} 13. Bxd8 {[%emt 0:00:57]} Nxd2 {[%emt 0:00:11]} 14. Nxc6 {[%emt 0:01:20]} Bxc6 {[%emt 0:07:31]} 15. Nd4 {[%emt 0:02:55]} Bd7 {[%emt 0:08:12]} 16. Rxd2 {[%emt 0:04:20]} Kxd8 {[%emt 0:00:34]} 17. Bd3 {[%emt 0:00:29]} g6 {[%emt 0:03:35]} 18. Rf2 {[%emt 0:00:52]} Bh6+ {[%emt 0:00:33]} 19. Kb1 {[%emt 0:00:52]} Be3 {[%emt 0:29:10]} 20. Nxe6+ {[%emt 0:03:04]} Bxe6 {[%emt 0:00:17]} 21. Re2 {[%emt 0:00:07]} Re8 {[%emt 0:00:22]} 22. Rhe1 {[%emt 0:01:24]} Bd2 {[%emt 0:01:34]} 23. Rd1 {[%emt 0:00:56]} Bf4 {[%emt 0:00:59]} 24. g3 {[%emt 0:00:55]} Be5 {[%emt 0:07:36]} 25. Be4 {[%emt 0:02:32]} Rb8 {[%emt 0:00:54]} 26. Bc6 {[%emt 0:01:55]} Bd7 {[%emt 0:00:20]} 0-1

[Event "7th Leer Open-A 2024"]
[Site "Leer"]
[Date "2024.10.31"]
[Round "2.35"]
[White "Wagner, Benjamin"]
[Black "de Vries, Carsten"]
[Result "1-0"]
[ECO "B15"]
[WhiteElo "2217"]
[BlackElo "1932"]
[Annotator "RC"]
[PlyCount "107"]
[EventDate "2024.10.14"]
[EventType "swiss"]
[EventCountry "GER"]
[SourceTitle "playchess.com"]
[Source "ChessBase"]
[SourceQuality "1"]
[TimeControl "40/5400+30:900+30"]

1. e4 {[%emt 0:00:02]} c6 {[%emt 0:00:02]} 2. d4 {[%emt 0:00:06]} d5 {[%emt 0:00:06]} 3. Nc3 {[%emt 0:00:09]} dxe4 {[%emt 0:00:19]} 4. Nxe4 {[%emt 0:00:02]} Nf6 {[%emt 0:00:10]} 5. Nxf6+ {[%emt 0:00:02]} exf6 {[%emt 0:00:11]} 6. c3 {[%emt 0:00:04]} Bd6 {[%emt 0:00:24]} 7. Bd3 {[%emt 0:00:09]} O-O {[%emt 0:00:28]} 8. Qc2 {[%emt 0:00:08]} Re8+ {[%emt 0:00:16]} 9. Ne2 {[%emt 0:00:02]} h5 {[%emt 0:00:45]} 10. Be3 {[%emt 0:00:07]} h4 {[%emt 0:03:56]} 11. O-O-O {[%emt 0:01:30]} Nd7 {[%emt 0:03:08]} 12. c4 {[%emt 0:00:17]} Nf8 {[%emt 0:02:16]} 13. Kb1 {[%emt 0:00:56]} b5 {[%emt 0:07:48]} 14. c5 {[%emt 0:05:12]} Bc7 {[%emt 0:01:25]} 15. d5 {[%emt 0:00:09]} cxd5 {[%emt 0:01:22]} 16. Bxb5 {[%emt 0:00:10]} Rb8 {[%emt 0:13:01]} 17. Bxe8 {[%emt 0:00:33]} Qxe8 {[%emt 0:00:08]} 18. Nd4 {[%emt 0:01:07]} Ne6 {[%emt 0:00:18]} 19. Rhe1 {[%emt 0:00:39]} g6 {[%emt 0:01:26]} 20. Ka1 {[%emt 0:01:12]} Rb4 {[%emt 0:00:57]} 21. Nxe6 {[%emt 0:03:29]} Bxe6 {[%emt 0:00:26]} 22. Qc3 {[%emt 0:02:36]} Qb8 {[%emt 0:01:53]} 23. Bd4 {[%emt 0:00:51]} Rc4 {[%emt 0:02:40]} 24. Qe3 {[%emt 0:02:57]} Ba5 {[%emt 0:01:22]} 25. Bxf6 {[%emt 0:01:15]} Kh7 {[%emt 0:02:05]} 26. Re2 {[%emt 0:08:12]} Bb4 {[%emt 0:26:24]} 27. Bd4 {[%emt 0:04:35]} Ba5 {[%emt 0:04:10]} 28. Rc1 {[%emt 0:04:26]} Rxc1+ {[%emt 0:00:39]} 29. Qxc1 {[%emt 0:00:03]} Qxh2 {[%emt 0:01:30]} 30. b4 {[%emt 0:05:58]} Bc7 {[%emt 0:00:23]} 31. f3 {[%emt 0:22:31]} Bf4 {[%emt 0:01:24]} 32. Qe1 {[%emt 0:09:06]} a6 {[%emt 0:06:50]} 33. Bg1 {[%emt 0:05:00]} Qh1 {[%emt 0:02:25]} 34. Be3 {[%emt 0:05:03]} Be5+ {[%emt 0:03:08]} 35. Kb1 {[%emt 0:00:02]} Qxe1+ {[%emt 0:02:19]} 36. Rxe1 {[%emt 0:00:02]} Bc3 {[%emt 0:00:14]} 37. Rh1 {[%emt 0:00:17]} Bf5+ {[%emt 0:04:36]} 38. Kc1 {[%emt 0:00:03]} h3 {[%emt 0:03:51]} 39. g4 {[%emt 0:00:36]} Bd7 {[%emt 0:00:57]} 40. Rxh3+ {[%emt 0:00:10]} Kg7 {[%emt 0:00:03]} 41. Bd2 {[%emt 0:19:10]} Bd4 {[%emt 0:15:25]} 42. Rh1 {[%emt 0:03:24]} Kf8 {[%emt 0:01:49]} 43. Rd1 {[%emt 0:03:44]} Bf6 {[%emt 0:03:12]} 44. Be3 {[%emt 0:02:16]} Bc6 {[%emt 0:00:36]} 45. Bd4 {[%emt 0:00:09]} Bg5+ {[%emt 0:00:00]} 46. Kb2 {[%emt 0:00:00]} Ke8 {[%emt 0:00:00]} 47. Kb3 {[%emt 0:00:00]} Bb5 {[%emt 0:00:00]} 48. a4 {[%emt 0:00:00]} Bc4+ {[%emt 0:00:00]} 49. Kc3 {[%emt 0:00:00]} Kd7 {[%emt 0:00:00]} 50. Rh1 {[%emt 0:00:00]} Be2 {[%emt 0:00:00]} 51. Rh7 {[%emt 0:00:00]} Ke6 {[%emt 0:00:00]} 52. c6 {[%emt 0:00:00]} Bd8 {[%emt 0:00:00]} 53. Rh8 {[%emt 0:00:00]} Bc7 {[%emt 0:00:00]} 54. Re8+ {[%emt 0:00:00]} 1-0

[Event "7th Leer Open-A 2024"]
[Site "Leer"]
[Date "2024.10.31"]
[Round "2.36"]
[White "Gellrich, Peter"]
[Black "Direk, Oguzhan"]
[Result "1-0"]
[ECO "A84"]
[WhiteElo "2134"]
[BlackElo "1860"]
[Annotator "RC"]
[PlyCount "89"]
[EventDate "2024.10.14"]
[EventType "swiss"]
[EventCountry "GER"]
[SourceTitle "playchess.com"]
[Source "ChessBase"]
[SourceQuality "1"]
[TimeControl "40/5400+30:900+30"]

1. d4 {[%emt 0:00:04]} d5 {[%emt 0:01:46]} 2. Nf3 {[%emt 0:04:54]} c6 {[%emt 0:00:16]} 3. c4 {[%emt 0:00:51]} e6 {[%emt 0:00:11]} 4. e3 {[%emt 0:00:24]} f5 {[%emt 0:00:26]} 5. Bd3 {[%emt 0:01:20]} Nf6 {[%emt 0:00:13]} 6. O-O {[%emt 0:01:38]} Bd6 {[%emt 0:00:49]} 7. b3 {[%emt 0:03:40]} O-O {[%emt 0:04:12]} 8. Bb2 {[%emt 0:00:50]} Bd7 {[%emt 0:03:30]} 9. Nbd2 {[%emt 0:03:06]} Be8 {[%emt 0:00:55]} 10. Ne5 {[%emt 0:12:42]} Nbd7 {[%emt 0:13:22]} 11. Rc1 {[%emt 0:07:51]} Bxe5 {[%emt 0:02:51]} 12. dxe5 {[%emt 0:00:44]} Ng4 {[%emt 0:00:12]} 13. Nf3 {[%emt 0:03:50]} Bh5 {[%emt 0:04:09]} 14. Be2 {[%emt 0:03:25]} Nh6 {[%emt 0:04:51]} 15. cxd5 {[%emt 0:03:05]} Bxf3 {[%emt 0:00:57]} 16. Bxf3 {[%emt 0:04:41]} cxd5 {[%emt 0:00:42]} 17. Bxd5 {[%emt 0:00:20]} exd5 {[%emt 0:00:52]} 18. Qxd5+ {[%emt 0:00:20]} Kh8 {[%emt 0:00:06]} 19. Rfd1 {[%emt 0:01:35]} Qh4 {[%emt 0:05:07]} 20. g3 {[%emt 0:04:10]} Qh3 {[%emt 0:00:15]} 21. Qxb7 {[%emt 0:01:48]} Ng4 {[%emt 0:00:28]} 22. Qg2 {[%emt 0:00:19]} Qxg2+ {[%emt 0:02:30]} 23. Kxg2 {[%emt 0:00:09]} Nb6 {[%emt 0:02:43]} 24. h3 {[%emt 0:01:33]} Nh6 {[%emt 0:00:15]} 25. e6 {[%emt 0:01:14]} Ng8 {[%emt 0:01:48]} 26. Rc7 {[%emt 0:02:18]} Nf6 {[%emt 0:02:39]} 27. e7 {[%emt 0:04:54]} Rfe8 {[%emt 0:04:42]} 28. Rd8 {[%emt 0:05:01]} Rexd8 {[%emt 0:01:31]} 29. exd8=Q+ {[%emt 0:00:25]} Rxd8 {[%emt 0:00:03]} 30. Rxa7 {[%emt 0:00:25]} Ra8 {[%emt 0:00:33]} 31. Rxa8+ {[%emt 0:01:37]} Nxa8 {[%emt 0:00:08]} 32. Bxf6 {[%emt 0:00:53]} gxf6 {[%emt 0:00:07]} 33. Kf3 {[%emt 0:00:45]} Kg7 {[%emt 0:00:04]} 34. Kf4 {[%emt 0:00:45]} Kg6 {[%emt 0:00:05]} 35. e4 {[%emt 0:00:38]} fxe4 {[%emt 0:00:45]} 36. Kxe4 {[%emt 0:00:17]} Nc7 {[%emt 0:00:16]} 37. a4 {[%emt 0:01:43]} Kf7 {[%emt 0:00:52]} 38. Kd4 {[%emt 0:04:01]} Ke6 {[%emt 0:00:28]} 39. Kc5 {[%emt 0:00:24]} Ke5 {[%emt 0:00:35]} 40. b4 {[%emt 0:02:27]} Ke4 {[%emt 0:00:49]} 41. b5 {[%emt 0:15:45]} Kf3 {[%emt 0:15:46]} 42. Kd6 {[%emt 0:01:30]} Na8 {[%emt 0:00:34]} 43. Kc6 {[%emt 0:00:49]} Kxf2 {[%emt 0:00:10]} 44. Kb7 {[%emt 0:00:12]} Kxg3 {[%emt 0:00:06]} 45. Kxa8 {[%emt 0:18:38]} 1-0

[Event "7th Leer Open-A 2024"]
[Site "Leer"]
[Date "2024.10.31"]
[Round "2.38"]
[White "Theile-Rasche, Ingo"]
[Black "Jakob, Matthias"]
[Result "1/2-1/2"]
[ECO "B06"]
[WhiteElo "1916"]
[BlackElo "2070"]
[Annotator "RC"]
[PlyCount "40"]
[EventDate "2024.10.14"]
[EventType "swiss"]
[EventCountry "GER"]
[SourceTitle "playchess.com"]
[Source "ChessBase"]
[SourceQuality "1"]
[TimeControl "40/5400+30:900+30"]

1. Nc3 {[%emt 0:00:11]} g6 {[%emt 0:00:22]} 2. e4 {[%emt 0:00:35]} Bg7 {[%emt 0:00:06]} 3. Nf3 {[%emt 0:00:16]} d6 {[%emt 0:00:20]} 4. Bc4 {[%emt 0:03:11]} c6 {[%emt 0:03:11]} 5. O-O {[%emt 0:02:12]} e5 {[%emt 0:05:08]} 6. d4 {[%emt 0:11:47]} Qc7 {[%emt 0:04:33]} 7. dxe5 {[%emt 0:08:50]} dxe5 {[%emt 0:00:04]} 8. Ng5 {[%emt 0:02:15]} Nh6 {[%emt 0:00:14]} 9. Be3 {[%emt 0:02:55]} O-O {[%emt 0:00:21]} 10. h3 {[%emt 0:04:00]} Kh8 {[%emt 0:11:24]} 11. Qc1 {[%emt 0:08:42]} b5 {[%emt 0:05:23]} 12. Bb3 {[%emt 0:01:28]} a5 {[%emt 0:03:56]} 13. a3 {[%emt 0:00:52]} Ba6 {[%emt 0:00:57]} 14. Rd1 {[%emt 0:02:51]} Nd7 {[%emt 0:09:16]} 15. Ne6 {[%emt 0:10:47]} fxe6 {[%emt 0:00:22]} 16. Bxh6 {[%emt 0:00:07]} Nc5 {[%emt 0:02:48]} 17. Be3 {[%emt 0:03:32]} Qe7 {[%emt 0:02:35]} 18. f3 {[%emt 0:04:22]} Rfd8 {[%emt 0:06:15]} 19. Rxd8+ {[%emt 0:05:02]} Rxd8 {[%emt 0:00:12]} 20. Qe1 {[%emt 0:00:28]} Bc8 {[%emt 0:09:51]} 1/2-1/2

[Event "7th Leer Open-A 2024"]
[Site "Leer"]
[Date "2024.10.31"]
[Round "2.39"]
[White "Schumann, Steffen"]
[Black "Leppert, Stefan"]
[Result "1-0"]
[ECO "B98"]
[WhiteElo "1981"]
[BlackElo "1904"]
[Annotator "RC"]
[PlyCount "55"]
[EventDate "2024.10.14"]
[EventType "swiss"]
[EventCountry "GER"]
[SourceTitle "playchess.com"]
[Source "ChessBase"]
[SourceQuality "1"]
[TimeControl "40/5400+30:900+30"]

1. e4 {[%emt 0:00:02]} c5 {[%emt 0:00:08]} 2. Nf3 {[%emt 0:00:04]} d6 {[%emt 0:00:07]} 3. d4 {[%emt 0:00:03]} cxd4 {[%emt 0:00:04]} 4. Nxd4 {[%emt 0:00:03]} Nf6 {[%emt 0:00:10]} 5. Nc3 {[%emt 0:00:03]} a6 {[%emt 0:00:06]} 6. Bg5 {[%emt 0:00:20]} e6 {[%emt 0:00:09]} 7. f4 {[%emt 0:00:12]} Be7 {[%emt 0:00:12]} 8. Qf3 {[%emt 0:00:21]} h6 {[%emt 0:00:09]} 9. Bh4 {[%emt 0:00:28]} g5 {[%emt 0:00:06]} 10. fxg5 {[%emt 0:01:11]} Nfd7 {[%emt 0:00:08]} 11. Be2 {[%emt 0:32:41]} Ne5 {[%emt 0:02:00]} 12. Qf2 {[%emt 0:01:29]} hxg5 {[%emt 0:04:37]} 13. Bg3 {[%emt 0:00:12]} Nbd7 {[%emt 0:00:54]} 14. O-O-O {[%emt 0:04:05]} Qc7 {[%emt 0:03:49]} 15. Nf3 {[%emt 0:56:46]} Rh7 {[%emt 0:06:36]} 16. h4 {[%emt 0:00:00]} Nxf3 {[%emt 0:04:34]} 17. gxf3 {[%emt 0:00:00]} gxh4 {[%emt 0:07:00]} 18. Bxh4 {[%emt 0:00:00]} Bxh4 {[%emt 0:01:41]} 19. Rxh4 {[%emt 0:00:00]} Rxh4 {[%emt 0:00:06]} 20. Qxh4 {[%emt 0:00:00]} b6 {[%emt 0:03:46]} 21. Rg1 {[%emt 0:00:00]} Bb7 {[%emt 0:01:33]} 22. Rg8+ {[%emt 0:00:00]} Nf8 {[%emt 0:00:15]} 23. f4 {[%emt 0:00:00]} Qe7 {[%emt 0:01:52]} 24. Qf2 {[%emt 0:00:00]} Qc7 {[%emt 0:03:21]} 25. f5 {[%emt 0:00:00]} O-O-O {[%emt 0:00:46]} 26. Rg7 {[%emt 0:00:00]} Rd7 {[%emt 0:05:18]} 27. Bh5 {[%emt 0:06:00]} e5 {[%emt 0:03:30]} 28. Na4 {[%emt 0:00:00]} 1-0

[Event "7th Leer Open-A 2024"]
[Site "Leer"]
[Date "2024.10.31"]
[Round "2.40"]
[White "Stoy, Ulf"]
[Black "Goldmann, David"]
[Result "1/2-1/2"]
[ECO "A22"]
[WhiteElo "1910"]
[BlackElo "1969"]
[Annotator "RC"]
[PlyCount "56"]
[EventDate "2024.10.14"]
[EventType "swiss"]
[EventCountry "GER"]
[SourceTitle "playchess.com"]
[Source "ChessBase"]
[SourceQuality "1"]
[TimeControl "40/5400+30:900+30"]

1. c4 {[%emt 0:00:03]} e5 {[%emt 0:05:45]} 2. g3 {[%emt 0:00:30]} Nf6 {[%emt 0:00:25]} 3. Bg2 {[%emt 0:00:07]} Bc5 {[%emt 0:01:12]} 4. Nc3 {[%emt 0:00:48]} O-O {[%emt 0:00:58]} 5. e3 {[%emt 0:01:48]} Re8 {[%emt 0:01:22]} 6. Nge2 {[%emt 0:04:18]} e4 {[%emt 0:00:30]} 7. f3 {[%emt 0:04:33]} exf3 {[%emt 0:05:29]} 8. Bxf3 {[%emt 0:00:03]} d6 {[%emt 0:00:22]} 9. O-O {[%emt 0:02:07]} Nc6 {[%emt 0:01:42]} 10. d4 {[%emt 0:02:49]} Bb6 {[%emt 0:00:05]} 11. Nf4 {[%emt 0:04:11]} Bf5 {[%emt 0:04:48]} 12. Nfd5 {[%emt 0:04:28]} Nxd5 {[%emt 0:00:41]} 13. Bxd5 {[%emt 0:15:55]} Be6 {[%emt 0:01:22]} 14. Qf3 {[%emt 0:02:35]} Qd7 {[%emt 0:02:29]} 15. Bd2 {[%emt 0:03:07]} Bxd5 {[%emt 0:05:54]} 16. Nxd5 {[%emt 0:00:51]} Nd8 {[%emt 0:01:11]} 17. Rae1 {[%emt 0:15:39]} c6 {[%emt 0:00:41]} 18. Nc3 {[%emt 0:01:11]} Ne6 {[%emt 0:01:12]} 19. d5 {[%emt 0:04:26]} Nc5 {[%emt 0:04:23]} 20. Kg2 {[%emt 0:01:33]} Nd3 {[%emt 0:00:51]} 21. Rb1 {[%emt 0:05:24]} Ne5 {[%emt 0:01:25]} 22. Qe2 {[%emt 0:01:27]} Qg4 {[%emt 0:00:10]} 23. Qxg4 {[%emt 0:03:23]} Nxg4 {[%emt 0:00:01]} 24. e4 {[%emt 0:00:17]} Be3 {[%emt 0:00:15]} 25. Rfd1 {[%emt 0:05:18]} Bxd2 {[%emt 0:04:04]} 26. Rxd2 {[%emt 0:00:02]} Ne3+ {[%emt 0:00:01]} 27. Kf2 {[%emt 0:00:14]} Nxc4 {[%emt 0:00:03]} 28. Rd4 {[%emt 0:00:31]} Ne5 {[%emt 0:02:39]} 1/2-1/2

[Event "7th Leer Open-A 2024"]
[Site "Leer"]
[Date "2024.10.31"]
[Round "2.41"]
[White "Jonnek, Thomas"]
[Black "Schreiber, Ralf"]
[Result "1-0"]
[ECO "A46"]
[WhiteElo "2012"]
[BlackElo "1884"]
[Annotator "RC"]
[PlyCount "45"]
[EventDate "2024.10.14"]
[EventType "swiss"]
[EventCountry "GER"]
[SourceTitle "playchess.com"]
[Source "ChessBase"]
[SourceQuality "1"]
[TimeControl "40/5400+30:900+30"]

1. d4 {[%emt 0:00:03]} c6 {[%emt 0:00:24]} 2. Nf3 {[%emt 0:00:17]} d6 {[%emt 0:00:07]} 3. g3 {[%emt 0:01:02]} Nf6 {[%emt 0:00:23]} 4. Bg2 {[%emt 0:00:51]} Qc7 {[%emt 0:00:19]} 5. O-O {[%emt 0:03:17]} e5 {[%emt 0:00:40]} 6. c3 {[%emt 0:06:21]} e4 {[%emt 0:02:44]} 7. Ng5 {[%emt 0:05:14]} d5 {[%emt 0:00:40]} 8. f3 {[%emt 0:02:49]} h6 {[%emt 0:02:30]} 9. Nh3 {[%emt 0:00:51]} Bf5 {[%emt 0:01:49]} 10. Bf4 {[%emt 0:06:37]} Bd6 {[%emt 0:00:31]} 11. fxe4 {[%emt 0:07:28]} Bxe4 {[%emt 0:05:40]} 12. Bxe4 {[%emt 0:04:19]} Nxe4 {[%emt 0:02:26]} 13. Nd2 {[%emt 0:01:09]} Ng5 {[%emt 0:10:11]} 14. Nxg5 {[%emt 0:04:55]} hxg5 {[%emt 0:00:10]} 15. Bxd6 {[%emt 0:00:30]} Qxd6 {[%emt 0:00:08]} 16. e4 {[%emt 0:00:54]} Rh3 {[%emt 0:04:53]} 17. Qg4 {[%emt 0:06:30]} Qe6 {[%emt 0:10:51]} 18. Qxg5 {[%emt 0:03:22]} Qh6 {[%emt 0:08:25]} 19. Nf3 {[%emt 0:04:55]} Rh5 {[%emt 0:06:16]} 20. Qxh6 {[%emt 0:03:35]} Rxh6 {[%emt 0:00:50]} 21. exd5 {[%emt 0:00:55]} cxd5 {[%emt 0:00:33]} 22. Ng5 {[%emt 0:00:34]} Rf6 {[%emt 0:05:35]} 23. Rae1+ {[%emt 0:00:58]} 1-0

[Event "7th Leer Open-A 2024"]
[Site "Leer"]
[Date "2024.10.31"]
[Round "2.42"]
[White "Van Coppenolle, Lander"]
[Black "Lau, Udo"]
[Result "1-0"]
[ECO "B14"]
[WhiteElo "1907"]
[BlackElo "2010"]
[Annotator "RC"]
[PlyCount "85"]
[EventDate "2024.10.14"]
[EventType "swiss"]
[EventCountry "GER"]
[SourceTitle "playchess.com"]
[Source "ChessBase"]
[SourceQuality "1"]
[TimeControl "40/5400+30:900+30"]

1. e4 {[%emt 0:00:03]} c6 {[%emt 0:00:15]} 2. d4 {[%emt 0:00:05]} d5 {[%emt 0:00:16]} 3. exd5 {[%emt 0:00:11]} cxd5 {[%emt 0:00:17]} 4. c4 {[%emt 0:00:09]} Nf6 {[%emt 0:01:20]} 5. Nc3 {[%emt 0:00:05]} e6 {[%emt 0:01:07]} 6. Nf3 {[%emt 0:00:14]} Be7 {[%emt 0:01:04]} 7. c5 {[%emt 0:00:44]} O-O {[%emt 0:01:03]} 8. Bd3 {[%emt 0:00:56]} Nc6 {[%emt 0:04:31]} 9. O-O {[%emt 0:00:46]} Bd7 {[%emt 0:03:39]} 10. a3 {[%emt 0:02:25]} Rc8 {[%emt 0:05:50]} 11. b4 {[%emt 0:08:03]} Qc7 {[%emt 0:04:50]} 12. Re1 {[%emt 0:00:53]} Rfd8 {[%emt 0:07:54]} 13. g3 {[%emt 0:01:59]} Rf8 {[%emt 0:02:31]} 14. Rb1 {[%emt 0:01:38]} Qd8 {[%emt 0:01:24]} 15. b5 {[%emt 0:07:34]} Na5 {[%emt 0:02:04]} 16. Ne5 {[%emt 0:00:10]} Be8 {[%emt 0:00:30]} 17. Bd2 {[%emt 0:08:36]} b6 {[%emt 0:02:25]} 18. c6 {[%emt 0:04:52]} Bxa3 {[%emt 0:00:38]} 19. Na2 {[%emt 0:03:01]} Bd6 {[%emt 0:02:04]} 20. Qa4 {[%emt 0:02:55]} a6 {[%emt 0:05:13]} 21. bxa6 {[%emt 0:04:38]} Nxc6 {[%emt 0:01:30]} 22. Bb5 {[%emt 0:04:09]} Na7 {[%emt 0:01:39]} 23. Bxe8 {[%emt 0:00:15]} Rxe8 {[%emt 0:00:17]} 24. Nc3 {[%emt 0:02:27]} Bxe5 {[%emt 0:00:45]} 25. dxe5 {[%emt 0:00:22]} Nd7 {[%emt 0:00:15]} 26. Nb5 {[%emt 0:01:26]} Nc5 {[%emt 0:01:06]} 27. Qg4 {[%emt 0:02:56]} Nxb5 {[%emt 0:01:44]} 28. Rxb5 {[%emt 0:10:31]} Ne4 {[%emt 0:01:43]} 29. Be3 {[%emt 0:05:40]} f5 {[%emt 0:01:45]} 30. exf6 {[%emt 0:00:18]} Nxf6 {[%emt 0:00:29]} 31. Qb4 {[%emt 0:00:12]} e5 {[%emt 0:01:03]} 32. Bxb6 {[%emt 0:01:34]} Qd7 {[%emt 0:00:09]} 33. a7 {[%emt 0:01:15]} d4 {[%emt 0:01:21]} 34. Rbxe5 {[%emt 0:16:17]} Rxe5 {[%emt 0:03:45]} 35. Rxe5 {[%emt 0:00:06]} Ng4 {[%emt 0:01:11]} 36. Rc5 {[%emt 0:02:52]} Re8 {[%emt 0:01:50]} 37. Rc7 {[%emt 0:01:00]} Qf5 {[%emt 0:02:29]} 38. Bxd4 {[%emt 0:00:08]} Ne5 {[%emt 0:02:35]} 39. Bxe5 {[%emt 0:00:46]} Qxe5 {[%emt 0:00:27]} 40. Re7 {[%emt 0:04:01]} Qa1+ {[%emt 0:01:31]} 41. Kg2 {[%emt 0:15:26]} Rf8 {[%emt 0:16:24]} 42. Qb3+ {[%emt 0:00:26]} Kh8 {[%emt 0:00:17]} 43. Qf7 {[%emt 0:00:35]} 1-0

[Event "7th Leer Open-A 2024"]
[Site "Leer"]
[Date "2024.10.31"]
[Round "2.43"]
[White "Wiethuechter, Samuel"]
[Black "Budzyn, Matthias"]
[Result "0-1"]
[ECO "A23"]
[WhiteElo "1883"]
[BlackElo "1986"]
[Annotator "RC"]
[PlyCount "65"]
[EventDate "2024.10.14"]
[EventType "swiss"]
[EventCountry "GER"]
[SourceTitle "playchess.com"]
[Source "ChessBase"]
[SourceQuality "1"]
[TimeControl "40/5400+30:900+30"]

1. c4 {[%emt 0:02:17]} e5 {[%emt 0:00:09]} 2. Nc3 {[%emt 0:00:31]} Nf6 {[%emt 0:00:12]} 3. g3 {[%emt 0:00:18]} c6 {[%emt 0:00:57]} 4. Bg2 {[%emt 0:07:27]} d5 {[%emt 0:00:27]} 5. cxd5 {[%emt 0:00:08]} cxd5 {[%emt 0:00:08]} 6. d3 {[%emt 0:01:03]} Nc6 {[%emt 0:02:27]} 7. Bg5 {[%emt 0:05:48]} Be6 {[%emt 0:06:33]} 8. Bxf6 {[%emt 0:05:46]} gxf6 {[%emt 0:03:04]} 9. Qa4 {[%emt 0:14:34]} Be7 {[%emt 0:03:45]} 10. e4 {[%emt 0:08:23]} d4 {[%emt 0:01:43]} 11. Nd5 {[%emt 0:00:05]} O-O {[%emt 0:01:04]} 12. Nxe7+ {[%emt 0:00:35]} Qxe7 {[%emt 0:00:44]} 13. a3 {[%emt 0:01:59]} a6 {[%emt 0:01:10]} 14. Nf3 {[%emt 0:04:33]} b5 {[%emt 0:00:21]} 15. Qd1 {[%emt 0:00:10]} Rac8 {[%emt 0:06:11]} 16. Nh4 {[%emt 0:03:14]} Qd7 {[%emt 0:04:30]} 17. Qh5 {[%emt 0:01:59]} Kg7 {[%emt 0:07:05]} 18. h3 {[%emt 0:03:26]} Ne7 {[%emt 0:03:54]} 19. Bf3 {[%emt 0:01:37]} Ng6 {[%emt 0:06:27]} 20. Nf5+ {[%emt 0:05:41]} Bxf5 {[%emt 0:01:54]} 21. exf5 {[%emt 0:02:10]} Ne7 {[%emt 0:04:21]} 22. Be4 {[%emt 0:02:22]} Rc2 {[%emt 0:03:25]} 23. f4 {[%emt 0:01:39]} Qd6 {[%emt 0:05:31]} 24. O-O {[%emt 0:02:20]} Nd5 {[%emt 0:02:31]} 25. Qg4+ {[%emt 0:00:31]} Kh8 {[%emt 0:00:34]} 26. Qh4 {[%emt 0:00:22]} Ne3 {[%emt 0:02:38]} 27. fxe5 {[%emt 0:00:54]} Qxe5 {[%emt 0:01:20]} 28. Rf4 {[%emt 0:00:43]} Rg8 {[%emt 0:01:07]} 29. Kh1 {[%emt 0:01:32]} Rg5 {[%emt 0:12:28]} 30. Rg1 {[%emt 0:02:46]} Kg7 {[%emt 0:01:18]} 31. b4 {[%emt 0:03:28]} Qc7 {[%emt 0:04:27]} 32. Bg2 {[%emt 0:06:46]} Qc3 {[%emt 0:03:22]} 33. Be4 {[%emt 0:01:34]} 0-1